bitfinex-derivatives/quotes_BTCF0:USTF0_20250119
["timestamp","ask_amount","ask_price","bid_price","bid_amount"]
[1737268712936,0.047468,105460.0,105450.0,0.934246]
[1737268713636,0.4343366,105470.0,105460.0,0.047466]
[1737268713932,0.4343366,105470.0,105460.0,0.42013708]
[1737268715529,0.26363154,105470.0,105460.0,0.58931771]
[1737268715731,0.3309494,105470.0,105460.0,0.58931771]
[1737268716243,0.3309494,105470.0,105460.0,0.57744663]
[1737268716425,0.3309494,105470.0,105460.0,0.52998063]
[1737268716628,0.6917494,105470.0,105460.0,0.16918063]
[1737268716941,0.3609494,105470.0,105460.0,0.16918063]
[1737268718030,0.047466,105460.0,105450.0,0.83606133]
[1737268718238,0.047466,105460.0,105450.0,0.86692658]
[1737268719238,0.047466,105460.0,105450.0,0.69774595]
[1737268721633,0.047466,105460.0,105450.0,0.86706506]
[1737268721634,0.18968918,105460.0,105450.0,0.86706506]
[1737268721834,0.18968918,105460.0,105450.0,0.50626602]
[1737268722438,0.18968918,105460.0,105450.0,0.51549572]
[1737268723141,0.18968918,105460.0,105450.0,0.28948402]
[1737268723533,0.18968918,105460.0,105450.0,0.22302043]
[1737268726144,0.18968918,105460.0,105450.0,0.21379073]
[1737268726950,0.36039424,105460.0,105450.0,0.21379073]
[1737268727542,0.4277121,105460.0,105450.0,0.18119073]
[1737268728044,0.4277121,105460.0,105450.0,0.18119117]
[1737268728237,0.28548892,105460.0,105450.0,0.18119117]
[1737268728439,0.21817106,105460.0,105450.0,0.18119117]
[1737268729635,0.047466,105460.0,105450.0,0.18119117]
[1737268730544,0.11478386,105460.0,105450.0,0.18119117]
[1737268730744,0.25711584,105460.0,105450.0,0.18119117]
[1737268730942,0.61791584,105460.0,105450.0,0.18119117]
[1737268731245,0.61791584,105460.0,105450.0,0.16931911]
[1737268731838,0.047473,105450.0,105440.0,0.44280881]
[1737268732039,0.472073,105450.0,105440.0,0.45468181]
[1737268733040,0.53939086,105450.0,105440.0,0.40720381]
[1737268733236,0.047478,105440.0,105430.0,0.2839374]
[1737268733435,0.54291372,105440.0,105430.0,0.28251462]
[1737268733744,0.54291372,105440.0,105420.0,0.33901755]
[1737268733745,0.047482,105430.0,105420.0,0.33901755]
[1737268733949,0.50639986,105430.0,105420.0,0.33901755]
[1737268734748,0.62962292,105430.0,105410.0,0.43949]
[1737268735046,0.047486,105420.0,105410.0,0.43949]
[1737268736145,0.047486,105420.0,105410.0,0.3608]
[1737268741049,0.11480386,105420.0,105410.0,0.3608]
[1737268741349,0.047491,105410.0,105400.0,0.40971622]
[1737268744847,0.047491,105410.0,105400.0,0.36222322]
[1737268745048,0.11480886,105410.0,105400.0,0.36222322]
[1737268745258,0.17920886,105410.0,105400.0,0.00142322]
[1737268745454,0.20950886,105410.0,105400.0,0.00142322]
[1737268746746,0.047495,105400.0,105390.0,0.4231]
[1737268747541,0.047495,105400.0,105390.0,0.3915]
[1737268747952,0.11481286,105400.0,105390.0,0.3915]
[1737268748160,0.047495,105400.0,105390.0,0.3915]
[1737268749044,0.11481286,105400.0,105390.0,0.3915]
[1737268749249,0.11481286,105400.0,105390.0,0.3608]
[1737268750652,0.047497,105390.0,105380.0,0.3608]
[1737268750950,0.047497,105390.0,105380.0,0.408302]
[1737268752045,0.047497,105390.0,105380.0,0.47561986]
[1737268753660,0.047497,105390.0,105380.0,0.408302]
[1737268755754,0.047497,105390.0,105380.0,0.42018103]
[1737268756660,0.047497,105390.0,105380.0,0.408302]
[1737268756860,0.047497,105390.0,105380.0,0.420181]
[1737268757063,0.047497,105390.0,105380.0,0.408302]
[1737268757262,0.047497,105390.0,105380.0,0.42018102]
[1737268757766,0.047497,105390.0,105380.0,0.42018103]
[1737268759463,0.047497,105390.0,105380.0,0.37267903]
[1737268759860,0.11481486,105390.0,105380.0,0.37267903]
[1737268760250,0.11481486,105390.0,105380.0,0.3608]
[1737268760459,0.21221486,105390.0,105380.0,0.3608]
[1737268761268,0.21221486,105390.0,105380.0,0.37267976]
[1737268762165,0.22148277,105390.0,105380.0,0.3608]
[1737268762356,0.22148277,105390.0,105380.0,0.37267979]
[1737268764966,0.047502,105380.0,105370.0,0.0313]
[1737268765166,0.11481986,105380.0,105370.0,0.04318078]
[1737268766770,0.047502,105380.0,105370.0,0.04318078]
[1737268767364,0.11481986,105380.0,105370.0,0.09068678]
[1737268767963,0.047502,105380.0,105370.0,0.09068678]
[1737268768673,0.047502,105380.0,105370.0,0.09068693]
[1737268769181,0.11481986,105380.0,105370.0,0.09068693]
[1737268770167,0.047502,105380.0,105370.0,0.15800479]
[1737268770362,0.19883705,105390.0,105380.0,0.047502]
[1737268770564,0.18956914,105390.0,105380.0,0.57071027]
[1737268771671,0.047499,105390.0,105380.0,0.57071027]
[1737268773068,0.047499,105390.0,105380.0,0.57070335]
[1737268774470,0.047499,105390.0,105380.0,0.57070323]
[1737268774676,0.05676902,105400.0,105390.0,0.047497]
[1737268774870,0.047493,105400.0,105390.0,0.46968037]
[1737268776367,0.11481086,105400.0,105390.0,0.46968037]
[1737268776675,0.256881,105400.0,105390.0,0.45067522]
[1737268778367,0.256881,105400.0,105390.0,0.45067546]
[1737268779485,0.256881,105400.0,105390.0,0.469681]
[1737268780676,0.256881,105400.0,105390.0,0.40317846]
[1737268784574,0.256881,105400.0,105390.0,0.04237846]
[1737268785767,0.18956314,105400.0,105390.0,0.48950329]
[1737268786177,0.14207014,105400.0,105390.0,0.53700129]
[1737268787077,0.04749,105410.0,105390.0,0.48950329]
[1737268787273,0.04749,105410.0,105400.0,0.472193]
[1737268787474,0.04749,105410.0,105400.0,0.50307843]
[1737268787882,0.04749,105410.0,105400.0,0.57039629]
[1737268788275,0.04749,105410.0,105400.0,0.57038963]
[1737268788469,0.14207014,105420.0,105400.0,0.63770749]
[1737268788675,0.17070506,105430.0,105420.0,0.047484]
[1737268788882,0.17070506,105430.0,105420.0,0.50648063]
[1737268789083,0.17070506,105430.0,105420.0,0.53768063]
[1737268789578,0.17070506,105430.0,105420.0,0.5376726]
[1737268789775,0.047473,105450.0,105420.0,0.5376726]
[1737268790082,0.047473,105450.0,105440.0,0.047475]
[1737268792382,0.047473,105450.0,105440.0,0.408275]
[1737268793183,0.11479086,105450.0,105440.0,0.408275]
[1737268794079,0.047473,105450.0,105440.0,0.408275]
[1737268803083,0.047473,105450.0,105440.0,0.47559286]
[1737268807487,0.047473,105450.0,105440.0,0.11479286]
[1737268807687,0.047473,105450.0,105440.0,0.47559286]
[1737268810884,0.047473,105450.0,105440.0,0.408275]
[1737268815293,0.047473,105450.0,105440.0,0.42014765]
[1737268816694,0.047473,105450.0,105440.0,0.48746551]
[1737268817288,0.047473,105450.0,105440.0,0.46980468]
[1737268817500,0.09713003,105450.0,105440.0,0.46980468]
[1737268817795,0.047473,105450.0,105440.0,0.46980468]
[1737268818401,0.047473,105450.0,105440.0,0.48880092]
[1737268819096,0.1897007,105450.0,105440.0,0.46980468]
[1737268819595,0.1897007,105450.0,105440.0,0.48880092]
[1737268820394,0.21817806,105450.0,105440.0,0.71350004]
[1737268820597,0.21817806,105450.0,105440.0,0.6945038]
[1737268821099,0.21817806,105450.0,105440.0,0.71350007]
[1737268821698,0.26434356,105450.0,105440.0,0.71350007]
[1737268822595,0.26434356,105450.0,105440.0,0.59737177]
[1737268822596,0.31400059,105450.0,105440.0,0.59737177]
[1737268822796,0.047474,105440.0,105430.0,0.2820541]
[1737268823101,0.49103103,105440.0,105430.0,0.2820541]
[1737268824406,0.49103103,105440.0,105410.0,0.41045703]
[1737268824702,0.09714003,105420.0,105410.0,0.41045703]
[1737268825093,0.09714003,105420.0,105410.0,0.3608]
[1737268825291,0.047483,105420.0,105410.0,0.3608]
[1737268825903,0.36040493,105420.0,105410.0,0.3608]
[1737268827205,0.18972024,105420.0,105410.0,0.3608]
[1737268830605,0.14709041,105420.0,105410.0,0.3608]
[1737268830906,0.15655887,105420.0,105410.0,0.3608]
[1737268831499,0.047488,105410.0,105400.0,0.439789]
[1737268831900,0.11479541,105410.0,105400.0,0.439789]
[1737268832101,0.11479541,105410.0,105400.0,0.3608]
[1737268832606,0.14749541,105410.0,105400.0,0.3608]
[1737268836212,0.14749541,105410.0,105400.0,0.408293]
[1737268836798,0.11479541,105410.0,105400.0,0.408293]
[1737268837906,0.047488,105410.0,105400.0,0.408293]
[1737268838502,0.11479541,105410.0,105400.0,0.408293]
[1737268838699,0.047488,105410.0,105400.0,0.408293]
[1737268839205,0.22202224,105420.0,105410.0,0.047488]
[1737268839397,0.14223724,105420.0,105410.0,0.50839541]
[1737268839601,0.14223724,105420.0,105410.0,0.52027107]
[1737268839800,0.14223724,105420.0,105410.0,0.50839541]
[1737268840408,0.05713738,105440.0,105410.0,0.50839541]
[1737268840608,0.05713738,105440.0,105430.0,0.408279]
[1737268840811,0.047477,105440.0,105430.0,0.408279]
[1737268841999,0.11478441,105440.0,105430.0,0.42015262]
[1737268843314,0.11478441,105440.0,105430.0,0.408279]
[1737268845615,0.11478441,105440.0,105430.0,0.41789833]
[1737268847308,0.11478441,105440.0,105420.0,0.3608]
[1737268847510,0.047484,105420.0,105410.0,0.0328]
[1737268847716,0.047484,105420.0,105400.0,0.7092541]
[1737268847717,0.047488,105410.0,105400.0,0.7092541]
[1737268847908,0.11479541,105410.0,105400.0,0.6428541]
[1737268848710,0.047488,105410.0,105400.0,0.3608]
[1737268849115,0.047488,105410.0,105400.0,0.408293]
[1737268849514,0.047488,105410.0,105400.0,0.3608]
[1737268853416,0.05673799,105410.0,105400.0,0.408293]
[1737268854708,0.047488,105410.0,105400.0,0.42017026]
[1737268856120,0.047488,105410.0,105400.0,0.408293]
[1737268857315,0.047488,105410.0,105400.0,0.42017005]
[1737268857618,0.047488,105410.0,105400.0,0.408293]
[1737268859017,0.047488,105410.0,105400.0,0.42017005]
[1737268859219,0.047488,105410.0,105400.0,0.42016968]
[1737268859521,0.047488,105410.0,105400.0,0.42016956]
[1737268859915,0.047488,105410.0,105400.0,0.408293]
[1737268861021,0.047488,105410.0,105400.0,0.42016946]
[1737268861221,0.047488,105410.0,105400.0,0.408293]
[1737268861416,0.18972324,105420.0,105410.0,0.047488]
[1737268861615,0.25703065,105420.0,105410.0,0.408288]
[1737268862307,0.11479341,105420.0,105410.0,0.047488]
[1737268862517,0.11479341,105420.0,105410.0,0.408288]
[1737268862714,0.11479341,105420.0,105410.0,0.472988]
[1737268864213,0.11479341,105420.0,105410.0,0.112188]
[1737268866117,0.25703065,105420.0,105410.0,0.112188]
[1737268866420,0.18972324,105420.0,105410.0,0.112188]
[1737268866810,0.18972324,105420.0,105410.0,0.48486422]
[1737268867217,0.047486,105420.0,105410.0,0.48486422]
[1737268867725,0.047486,105420.0,105410.0,0.05936422]
[1737268868724,0.047486,105420.0,105410.0,0.22853861]
[1737268869218,0.047486,105420.0,105410.0,0.57746239]
[1737268869426,0.05684245,105430.0,105420.0,0.047484]
[1737268869628,0.05684245,105430.0,105420.0,0.440284]
[1737268870012,0.05684245,105430.0,105420.0,0.3928]
[1737268870218,0.05684245,105430.0,105420.0,0.032]
[1737268870422,0.12414986,105430.0,105420.0,0.3928]
[1737268870718,0.047484,105420.0,105410.0,0.57746139]
[1737268870919,0.047484,105420.0,105410.0,0.58933707]
[1737268871826,0.047484,105420.0,105410.0,0.58933661]
[1737268875628,0.047484,105420.0,105410.0,0.58933666]
[1737268877037,0.047484,105420.0,105410.0,0.58933662]
[1737268877822,0.047484,105420.0,105410.0,0.65664403]
[1737268878031,0.18971824,105430.0,105410.0,0.65664403]
[1737268878329,0.18971824,105430.0,105420.0,0.3608]
[1737268878531,0.18971824,105430.0,105420.0,0.37267523]
[1737268879232,0.18971824,105430.0,105420.0,0.54184962]
[1737268879421,0.18971824,105430.0,105420.0,0.54184937]
[1737268880229,0.18971824,105430.0,105420.0,0.37267498]
[1737268882634,0.18971824,105430.0,105420.0,0.40347498]
[1737268883134,0.18971824,105430.0,105420.0,0.46607498]
[1737268883727,0.18971824,105430.0,105420.0,0.51355898]
[1737268885025,0.18971824,105430.0,105420.0,0.501684]
[1737268885228,0.18971824,105430.0,105420.0,0.51355897]
[1737268886229,0.18971824,105430.0,105420.0,0.52308103]
[1737268886633,0.18971824,105430.0,105420.0,0.69225542]
[1737268887036,0.18971824,105430.0,105420.0,0.69225492]
[1737268887935,0.18971824,105430.0,105420.0,0.75956233]
[1737268888631,0.18971824,105430.0,105420.0,0.69225492]
[1737268889043,0.18971824,105430.0,105420.0,0.75956233]
[1737268889231,0.11478841,105430.0,105420.0,0.74908599]
[1737268889431,0.09716188,105430.0,105420.0,0.74908599]
[1737268889835,0.09716188,105430.0,105420.0,0.79876687]
[1737268890733,0.09716188,105430.0,105420.0,0.79876577]
[1737268892644,0.09716188,105430.0,105420.0,0.7987655]
[1737268893142,0.047481,105430.0,105420.0,0.7987655]
[1737268894444,0.047481,105430.0,105420.0,0.74908462]
[1737268894445,0.09716188,105430.0,105420.0,0.74908462]
[1737268894641,0.09716188,105430.0,105420.0,0.7987655]
[1737268895140,0.047481,105430.0,105420.0,0.7987655]
[1737268896441,0.047481,105430.0,105420.0,0.79876553]
[1737268898339,0.09716188,105430.0,105420.0,0.79876553]
[1737268898537,0.047481,105430.0,105420.0,0.79876553]
[1737268898734,0.09716188,105430.0,105420.0,0.23787859]
[1737268898938,0.56974276,105430.0,105420.0,0.22600546]
[1737268899441,0.71198,105430.0,105420.0,0.16947837]
[1737268900242,0.66229912,105430.0,105420.0,0.16947837]
[1737268900746,0.67188668,105430.0,105420.0,0.16947837]
[1737268901144,0.67188668,105430.0,105410.0,0.53027837]
[1737268901145,0.047483,105420.0,105410.0,0.53027837]
[1737268901346,0.14748849,105420.0,105410.0,0.53027837]
[1737268901842,0.14748849,105420.0,105410.0,0.5421547]
[1737268902046,0.14748849,105420.0,105410.0,0.5421541]
[1737268902547,0.18967906,105420.0,105410.0,0.42016373]
[1737268902737,0.14219606,105420.0,105410.0,0.58336922]
[1737268903648,0.18967706,105430.0,105420.0,0.047483]
[1737268903945,0.18967706,105430.0,105420.0,0.42015687]
[1737268904145,0.25698255,105430.0,105420.0,0.42015687]
[1737268905041,0.11478649,105430.0,105420.0,0.58963524]
[1737268907342,0.047481,105430.0,105420.0,0.58963524]
[1737268907648,0.11478649,105430.0,105420.0,0.58963524]
[1737268908449,0.047481,105430.0,105420.0,0.58963524]
[1737268909546,0.047481,105430.0,105420.0,0.57776137]
[1737268909747,0.047481,105430.0,105420.0,0.58963539]
[1737268910738,0.18967706,105430.0,105420.0,0.58963539]
[1737268911951,0.047481,105430.0,105420.0,0.58963539]
[1737268914253,0.18967706,105430.0,105420.0,0.58963539]
[1737268914645,0.18967706,105430.0,105420.0,0.65694088]
[1737268915347,0.18967706,105430.0,105420.0,0.65694056]
[1737268916255,0.14219606,105430.0,105420.0,0.65694056]
[1737268916659,0.18967106,105440.0,105430.0,0.047479]
[1737268916847,0.18967106,105440.0,105430.0,0.4201527]
[1737268918156,0.047475,105440.0,105430.0,0.64615816]
[1737268918956,0.047475,105440.0,105430.0,0.64615706]
[1737268919649,0.047475,105440.0,105430.0,0.81563719]
[1737268922156,0.047475,105440.0,105430.0,0.8156372]
[1737268923358,0.09713974,105440.0,105430.0,0.86530194]
[1737268923959,0.09713974,105440.0,105430.0,0.89740194]
[1737268924263,0.09713974,105440.0,105430.0,0.89740197]
[1737268924650,0.18372779,105450.0,105430.0,0.89740197]
[1737268924651,0.14219606,105450.0,105430.0,0.89740197]
[1737268924852,0.1918608,105450.0,105440.0,0.51943874]
[1737268925159,0.14219606,105450.0,105440.0,0.53131138]
[1737268925651,0.14219606,105450.0,105440.0,0.48164664]
[1737268925857,0.14219606,105450.0,105440.0,0.53131138]
[1737268926556,0.33261543,105460.0,105450.0,0.04747]
[1737268926557,0.3041268,105460.0,105450.0,0.04747]
[1737268926757,0.3041268,105460.0,105450.0,0.42014264]
[1737268927460,0.25446206,105460.0,105450.0,0.42014264]
[1737268927654,0.3217127,105460.0,105450.0,0.42014264]
[1737268927850,0.21221664,105460.0,105450.0,0.42014091]
[1737268928559,0.144966,105460.0,105450.0,0.42014091]
[1737268929261,0.144966,105460.0,105450.0,0.58962104]
[1737268930346,0.144966,105460.0,105450.0,0.58962113]
[1737268931054,0.144966,105460.0,105450.0,0.420141]
[1737268934855,0.28716206,105460.0,105450.0,0.420141]
[1737268936059,0.144966,105460.0,105450.0,0.420141]
[1737268937256,0.144966,105460.0,105450.0,0.42014099]
[1737268938956,0.112266,105460.0,105450.0,0.42014099]
[1737268942868,0.22984577,105470.0,105460.0,0.047465]
[1737268943060,0.22984577,105470.0,105460.0,0.42013556]
[1737268944769,0.22984577,105470.0,105460.0,0.42013542]
[1737268945267,0.29709641,105470.0,105460.0,0.42013542]
[1737268945567,0.29709641,105470.0,105460.0,0.42013547]
[1737268946472,0.32558504,105470.0,105460.0,0.42013547]
[1737268946765,0.32558504,105470.0,105460.0,0.42013545]
[1737268947563,0.32558504,105470.0,105460.0,0.37267045]
[1737268948661,0.32558504,105470.0,105460.0,0.37267067]
[1737268949366,0.30797827,105470.0,105460.0,0.37267067]
[1737268950368,0.30797827,105470.0,105460.0,0.3608]
[1737268950567,0.30797827,105470.0,105460.0,0.37267056]
[1737268951767,0.2583344,105470.0,105460.0,0.37267056]
[1737268951966,0.30797827,105470.0,105460.0,0.37267056]
[1737268952871,0.30797827,105470.0,105460.0,0.37267084]
[1737268953473,0.30797827,105470.0,105460.0,0.01187084]
[1737268953673,0.30797827,105470.0,105460.0,0.05933584]
[1737268953873,0.30797827,105470.0,105460.0,0.42013584]
[1737268954265,0.30797827,105470.0,105460.0,0.42013559]
[1737268954875,0.30797827,105470.0,105460.0,0.58961572]
[1737268955175,0.26779156,105470.0,105460.0,0.63925959]
[1737268956170,0.26779156,105470.0,105460.0,0.6392585]
[1737268957768,0.26779156,105470.0,105460.0,0.58961463]
[1737268958076,0.26779156,105470.0,105460.0,0.58961485]
[1737268963585,0.26779156,105470.0,105460.0,0.63925872]
[1737268965684,0.26779156,105470.0,105460.0,1.00005872]
[1737268967384,0.26779156,105470.0,105460.0,1.00005909]
[1737268967889,0.26779156,105470.0,105460.0,1.00005901]
[1737268968582,0.21814769,105470.0,105460.0,1.06225901]
[1737268969281,0.21814769,105470.0,105460.0,1.06225879]
[1737268969584,0.26779156,105470.0,105460.0,1.06225879]
[1737268974393,0.26779156,105470.0,105460.0,1.01261492]
[1737268975095,0.26779156,105470.0,105460.0,1.01261498]
[1737268976198,0.26779156,105470.0,105460.0,0.95041498]
[1737268976799,0.26779156,105470.0,105460.0,0.95041499]
[1737268977100,0.26779156,105470.0,105460.0,0.90294999]
[1737268977897,0.26779156,105470.0,105460.0,0.95041499]
[1737268979194,0.26779156,105470.0,105460.0,1.00005886]
[1737268979395,0.26779156,105470.0,105460.0,0.95041499]
[1737268979598,0.09710687,105470.0,105460.0,1.17642045]
[1737268981997,0.09710687,105470.0,105460.0,0.54214999]
[1737268982298,0.26779156,105470.0,105460.0,0.54214999]
[1737268982601,0.30099156,105470.0,105460.0,0.5421505]
[1737268987602,0.13030687,105470.0,105460.0,0.37267064]
[1737268988803,0.17646501,105470.0,105460.0,0.37267064]
[1737268989404,0.17646501,105470.0,105460.0,0.3726708]
[1737268989702,0.13030687,105470.0,105460.0,0.3726708]
[1737268991193,0.13030687,105470.0,105460.0,0.4201358]
[1737268991400,0.13030687,105470.0,105460.0,0.42013569]
[1737268991705,0.30112295,105470.0,105460.0,0.58961582]
[1737268995100,0.30112295,105470.0,105460.0,0.58961559]
[1737269000110,0.30112295,105470.0,105460.0,0.58940567]
[1737269002715,0.30112295,105470.0,105460.0,0.57753521]
[1737269003010,0.30112295,105470.0,105460.0,0.5894057]
[1737269008406,0.30112295,105470.0,105460.0,0.2286057]
[1737269008608,0.21827908,105470.0,105460.0,0.63904956]
[1737269008915,0.26792295,105470.0,105460.0,0.58940569]
[1737269009816,0.09710687,105470.0,105460.0,0.41992556]
[1737269010410,0.09710687,105470.0,105460.0,0.41992535]
[1737269011313,0.09710687,105470.0,105460.0,0.64593081]
[1737269012315,0.26792295,105470.0,105460.0,0.58977936]
[1737269016005,0.26792295,105470.0,105460.0,0.57790909]
[1737269016300,0.26792295,105470.0,105460.0,0.58977936]
[1737269018217,0.21827908,105470.0,105460.0,0.58977936]
[1737269018419,0.26792295,105470.0,105460.0,0.58977936]
[1737269020221,0.26792295,105470.0,105460.0,0.81578482]
[1737269021319,0.26792295,105470.0,105460.0,0.58977936]
[1737269024820,0.09710687,105470.0,105460.0,0.58977936]
[1737269025519,0.09710687,105470.0,105460.0,0.58977928]
[1737269026024,0.047463,105470.0,105460.0,0.58977928]
[1737269026215,0.14326264,105470.0,105460.0,0.58977928]
[1737269027215,0.26797919,105470.0,105460.0,0.58977928]
[1737269027414,0.26797919,105470.0,105460.0,0.5897792]
[1737269028017,0.26797919,105470.0,105460.0,0.58977919]
[1737269029225,0.21833532,105470.0,105460.0,0.58977919]
[1737269029426,0.26797919,105470.0,105460.0,0.58977919]
[1737269030833,0.67842306,105470.0,105460.0,0.18172411]
[1737269031034,0.047465,105460.0,105450.0,0.50805956]
[1737269031329,0.49070887,105460.0,105450.0,0.50805956]
[1737269031627,0.52100887,105460.0,105450.0,0.2820541]
[1737269033030,0.52100887,105460.0,105440.0,0.470874]
[1737269033229,0.09711387,105450.0,105440.0,0.12194656]
[1737269033530,0.09711387,105450.0,105440.0,0.48274656]
[1737269034743,0.26779464,105450.0,105440.0,0.48274656]
[1737269035743,0.22032464,105450.0,105440.0,0.53239044]
[1737269035941,0.36249619,105450.0,105440.0,0.53239044]
[1737269037142,0.36249619,105450.0,105440.0,0.53238929]
[1737269037339,0.04964387,105450.0,105440.0,0.75880437]
[1737269038631,0.04964387,105450.0,105440.0,0.53238929]
[1737269039347,0.36032032,105460.0,105450.0,0.04747]
[1737269039644,0.41967548,105460.0,105450.0,0.42014142]
[1737269039841,0.37003161,105460.0,105450.0,0.42014142]
[1737269040145,0.41967548,105460.0,105450.0,0.42014142]
[1737269040347,0.41967548,105460.0,105450.0,0.50238529]
[1737269040541,0.40996419,105460.0,105450.0,0.50238529]
[1737269040845,0.40996419,105460.0,105450.0,0.50238484]
[1737269041045,0.40996419,105460.0,105450.0,0.45274097]
[1737269041251,0.23928342,105460.0,105450.0,0.45274097]
[1737269042743,0.18963955,105460.0,105450.0,0.50238484]
[1737269042944,0.18963955,105460.0,105450.0,0.50238463]
[1737269043142,0.23928342,105460.0,105450.0,0.50238463]
[1737269043845,0.23928342,105460.0,105450.0,0.51185205]
[1737269045946,0.18963955,105460.0,105450.0,0.51185205]
[1737269047037,0.14217155,105460.0,105450.0,0.51185205]
[1737269048250,0.48253941,105470.0,105460.0,0.047465]
[1737269048450,0.48253941,105470.0,105460.0,0.42013524]
[1737269050051,0.48253941,105470.0,105460.0,0.42013538]
[1737269050543,0.48253941,105470.0,105460.0,0.408265]
[1737269050747,0.48253941,105470.0,105460.0,0.42013538]
[1737269050948,0.29072399,105470.0,105460.0,0.42013538]
[1737269051152,0.34036786,105470.0,105460.0,0.42013538]
[1737269051948,0.20208709,105470.0,105460.0,0.42013538]
[1737269052255,0.20208709,105470.0,105460.0,0.42013533]
[1737269053152,0.34421377,105470.0,105460.0,0.42013533]
[1737269053960,0.34421377,105470.0,105460.0,0.42013525]
[1737269056756,0.2621699,105470.0,105460.0,0.46977912]
[1737269057055,0.17068077,105480.0,105470.0,0.047461]
[1737269057251,0.17068077,105480.0,105470.0,0.56407512]
[1737269057645,0.22032464,105480.0,105470.0,0.56407512]
[1737269058258,0.04964387,105480.0,105470.0,0.56407267]
[1737269058555,0.30067864,105490.0,105480.0,0.047456]
[1737269058756,0.26777864,105490.0,105480.0,0.46976767]
[1737269059255,0.21813477,105490.0,105480.0,0.46976767]
[1737269059455,0.047454,105490.0,105480.0,0.46976767]
[1737269060347,0.047454,105490.0,105480.0,0.45789987]
[1737269060547,0.31318077,105500.0,105480.0,0.51941136]
[1737269060755,0.31318077,105500.0,105490.0,0.45789587]
[1737269060756,0.33897627,105500.0,105490.0,0.45789587]
[1737269060948,0.38862014,105500.0,105490.0,0.45789587]
[1737269063047,0.38862014,105500.0,105490.0,0.408252]
[1737269063449,0.26092727,105500.0,105490.0,0.45789587]
[1737269063650,0.26092727,105500.0,105490.0,0.56906297]
[1737269064756,0.0902465,105500.0,105490.0,0.56906297]
[1737269065263,0.25032077,105520.0,105490.0,0.56906132]
[1737269065557,0.17068077,105520.0,105510.0,0.45788687]
[1737269065854,0.17068077,105520.0,105510.0,0.408243]
[1737269065855,0.22032464,105520.0,105510.0,0.408243]
[1737269066054,0.33206264,105520.0,105510.0,0.408243]
[1737269066253,0.29194063,105520.0,105510.0,0.408243]
[1737269066454,0.3415845,105520.0,105510.0,0.408243]
[1737269067361,0.17090373,105520.0,105510.0,0.408243]
[1737269067761,0.12125986,105520.0,105510.0,0.408243]
[1737269067961,0.17090373,105520.0,105510.0,0.408243]
[1737269070453,0.17090373,105520.0,105510.0,0.047443]
[1737269073559,0.17090373,105520.0,105510.0,0.408243]
[1737269074969,0.17090373,105520.0,105510.0,0.047443]
[1737269075161,0.17090373,105520.0,105510.0,0.408243]
[1737269075969,0.5813476,105520.0,105490.0,0.394]
[1737269076269,0.09709087,105500.0,105490.0,0.49109487]
[1737269081467,0.09709087,105500.0,105490.0,0.50296124]
[1737269082175,0.09709087,105500.0,105490.0,0.50296119]
[1737269083866,0.09709087,105500.0,105490.0,0.49109487]
[1737269084473,0.047447,105500.0,105490.0,0.50296119]
[1737269084673,0.047447,105500.0,105490.0,0.53566119]
[1737269084971,0.047447,105500.0,105490.0,0.56636119]
[1737269085575,0.08044387,105510.0,105490.0,0.56636119]
[1737269085875,0.12788887,105510.0,105500.0,0.408247]
[1737269087676,0.44054926,105510.0,105500.0,0.408247]
[1737269089268,0.44054926,105510.0,105500.0,0.42011274]
[1737269090274,0.29856964,105510.0,105500.0,0.42011274]
[1737269091380,0.29856964,105510.0,105500.0,0.05931274]
[1737269091572,0.29856964,105510.0,105500.0,0.42011274]
[1737269091771,0.3447081,105510.0,105500.0,0.408247]
[1737269092374,0.3447081,105510.0,105500.0,0.42011306]
[1737269092777,0.29856964,105510.0,105500.0,0.42011306]
[1737269095280,0.29856964,105510.0,105500.0,0.42011301]
[1737269095980,0.29856964,105510.0,105500.0,0.42011299]
[1737269097279,0.29856964,105510.0,105500.0,0.42011283]
[1737269099484,0.24892577,105510.0,105500.0,0.4697567]
[1737269099685,0.29856964,105510.0,105500.0,0.4697567]
[1737269100890,0.29856964,105510.0,105500.0,0.46975657]
[1737269101083,0.21812577,105510.0,105500.0,0.46975657]
[1737269102384,0.21812577,105510.0,105500.0,0.47906489]
[1737269103188,0.18965851,105510.0,105500.0,0.70547997]
[1737269103390,0.18965851,105510.0,105500.0,0.69617067]
[1737269104192,0.18965851,105510.0,105500.0,0.6961708]
[1737269104590,0.23930238,105510.0,105500.0,0.6961708]
[1737269105693,0.23930238,105510.0,105500.0,0.46975572]
[1737269106192,0.23930238,105510.0,105500.0,0.4697558]
[1737269107695,0.28894625,105510.0,105500.0,0.37266493]
[1737269107898,0.32194625,105510.0,105500.0,0.37266569]
[1737269108289,0.27230238,105510.0,105500.0,0.37266569]
[1737269109093,0.13008887,105510.0,105500.0,0.37266569]
[1737269109686,0.13008887,105510.0,105500.0,0.37266622]
[1737269110498,0.39653317,105510.0,105500.0,0.37266622]
[1737269110891,0.3468893,105510.0,105500.0,0.37266622]
[1737269111390,0.047447,105500.0,105480.0,0.58721508]
[1737269111696,0.16259587,105490.0,105480.0,0.64653838]
[1737269112391,0.112952,105490.0,105480.0,0.64653838]
[1737269112595,0.112952,105490.0,105480.0,0.69618225]
[1737269113697,0.30479826,105490.0,105480.0,0.4697673]
[1737269116093,0.30479826,105490.0,105480.0,0.42012343]
[1737269117094,0.31415841,105490.0,105480.0,0.42012343]
[1737269122992,0.31415841,105490.0,105480.0,0.4697673]
[1737269123697,0.31415841,105490.0,105480.0,0.42012343]
[1737269124498,0.28115841,105490.0,105480.0,0.42012343]
[1737269124899,0.18965439,105490.0,105480.0,0.46976722]
[1737269125094,0.14220239,105490.0,105480.0,0.50086722]
[1737269125492,0.19184626,105490.0,105480.0,0.50086721]
[1737269126301,0.14220239,105490.0,105480.0,0.50086721]
[1737269126503,0.14220239,105490.0,105480.0,0.56496721]
[1737269126999,0.28166959,105500.0,105490.0,0.047452]
[1737269127197,0.18965139,105500.0,105490.0,0.46976321]
[1737269127403,0.23929526,105500.0,105490.0,0.42011934]
[1737269127903,0.23929526,105500.0,105490.0,0.46976321]
[1737269128296,0.23929526,105500.0,105490.0,0.42011934]
[1737269128496,0.14220239,105500.0,105490.0,0.46976321]
[1737269128692,0.14220239,105500.0,105490.0,0.45789587]
[1737269129801,0.14220239,105500.0,105490.0,0.46976194]
[1737269131897,0.45365022,105510.0,105490.0,0.46976194]
[1737269132103,0.45365022,105510.0,105500.0,0.408247]
[1737269132305,0.44203313,105510.0,105500.0,0.408247]
[1737269133407,0.29983074,105510.0,105500.0,0.408247]
[1737269133597,0.29983074,105510.0,105500.0,0.42011298]
[1737269133798,0.29983074,105510.0,105500.0,0.408247]
[1737269134600,0.29983074,105510.0,105500.0,0.42011298]
[1737269134601,0.31387012,105510.0,105500.0,0.42011298]